bitfinex/quotes_SOLUSD_20240809
["timestamp","ask_amount","ask_price","bid_price","bid_amount"]
[1723241364274,48.44,153.04,152.96,6.5374]
[1723241364275,48.44,153.01,152.96,6.5374]
[1723241364504,48.44,152.98,152.94,16.3458]
[1723241364799,0.43248901,152.97,152.92,6.5393]
[1723241364973,48.44,152.95,152.9,17.1915172]
[1723241365173,48.44,152.95,152.9,0.8418172]
[1723241365174,20.25098,152.94,152.9,0.8418172]
[1723241365374,48.44,152.91,152.9,0.8418172]
[1723241365989,68.44,152.91,152.9,0.8418172]
[1723241366375,68.56549,152.91,152.9,0.8418172]
[1723241367373,68.81647,152.91,152.86,6.5419]
[1723241367575,20.43248901,152.9,152.85,22.8981]
[1723241367981,20.43248901,152.9,152.85,16.3558]
[1723241367982,0.12549,152.89,152.85,16.3558]
[1723241368195,48.44,152.88,152.85,16.3558]
[1723241368896,48.44,152.88,152.85,22.8981]
[1723241369078,48.44,152.88,152.81,16.3596]
[1723241369079,26.91797,152.87,152.81,16.3596]
[1723241369279,0.43248901,152.86,152.82,6.5435]
[1723241369477,48.44,152.85,152.84,6.5427]
[1723241370486,20.0,152.87,152.84,6.5427]
[1723241370679,0.43248901,152.86,152.81,16.3596]
[1723241371011,20.0,152.87,152.85,6.5423]
[1723241371301,20.0,152.87,152.72,64.5463]
[1723241371302,6.5376,152.96,152.82,1.30845709]
[1723241371477,39.2443,153.04,152.9,16.3504]
[1723241371674,6.5358,153.01,152.95,6.538]
[1723241371879,48.9923,153.09,152.87,19.33221277]
[1723241372080,6.5347,153.03,152.96,16.3441]
[1723241372295,6.5364,152.99,152.94,6.5384]
[1723241372498,6.5359,153.0,152.94,6.5384]
[1723241373006,54.9753,153.02,152.96,6.5376]
[1723241373204,6.5353,153.02,152.96,6.5376]
[1723241373708,54.9745,153.04,152.95,16.3451]
[1723241373914,16.77545023,153.09,153.03,6.5346]
[1723241374085,6.5325,153.08,153.02,6.535]
[1723241374402,6.5329,153.07,153.02,6.535]
[1723241374912,8.85699619,153.12,152.95,0.12549]
[1723241375076,6.5317,153.1,153.02,16.3368]
[1723241375281,6.5317,153.1,153.05,6.5337]
[1723241375480,6.5312,153.11,153.06,6.5333]
[1723241375722,8.85699619,153.12,152.95,1.6830948]
[1723241375906,8.85699619,153.12,153.08,6.5325]
[1723241376112,8.85699619,153.12,153.07,6.5329]
[1723241376320,8.85699619,153.12,153.06,22.8654]
[1723241376635,8.85699619,153.12,152.97,67.89770277]
[1723241376636,48.44,153.1,153.03,16.3366]
[1723241376807,48.44,153.1,152.99,16.34]
[1723241376808,0.43248901,153.09,152.99,16.34]
[1723241377007,54.973,153.07,153.01,6.5354]
[1723241377206,20.0,153.06,153.01,6.5354]
[1723241377614,26.5334,153.06,153.01,6.5354]
[1723241377830,20.0,153.06,153.02,6.5347]
[1723241378017,20.0,153.06,153.04,6.534]
[1723241378216,26.65769,153.09,153.04,6.534]
[1723241378418,6.5325,153.08,153.02,6.535]
[1723241378726,20.12549,153.09,153.0,6.5359]
[1723241378727,6.5337,153.06,153.0,6.5359]
[1723241378931,26.5339,153.05,153.0,6.5359]
[1723241379116,6.5334,153.06,153.0,6.5358]
[1723241379304,48.44,153.01,152.86,17.24308661]
[1723241379517,6.96848901,153.0,152.94,6.5385]
[1723241379714,20.0,152.99,152.91,16.3489]
[1723241379912,0.12549,152.97,152.91,16.3489]
[1723241380212,20.0,152.97,152.93,6.5388]
[1723241380417,20.0,152.97,152.94,6.5383]
[1723241380830,48.44,152.98,152.93,16.3464]
[1723241381035,48.44,153.01,152.93,16.3464]
[1723241381332,20.0,153.0,152.98,6.5367]
[1723241381633,54.9746,153.04,152.87,0.12549]
[1723241381634,0.12549,153.02,152.87,0.12549]
[1723241381822,0.12549,153.02,152.88,0.12549]
[1723241382013,6.536,153.0,152.95,16.345]
[1723241382415,6.66089,153.02,152.95,22.8826]
[1723241382735,6.66089,153.02,152.88,0.25098]
[1723241382736,74.9758,153.01,152.88,1.43289867]
[1723241383036,48.44,153.04,152.89,19.58319277]
[1723241383206,6.5338,153.05,152.98,16.3411]
[1723241383413,48.44,153.04,152.95,16.345]
[1723241383610,48.44,153.04,152.96,1.30723249]
[1723241383932,31.58410401,153.11,152.97,1.30699379]
[1723241383933,54.9719,153.1,152.97,1.30699379]
[1723241384111,15.38819619,153.12,153.06,6.5333]
[1723241384314,10.23510239,153.16,153.15,6.5295]
[1723241384527,6.5293,153.16,153.1,6.5312]
[1723241384722,10.2289367,153.22,153.07,54.96309]
[1723241384923,6.5262,153.23,153.16,6.529]
[1723241385125,6.5262,153.23,153.15,16.3229]
[1723241385126,6.5261,153.23,153.15,16.3229]
[1723241385325,10.22753716,153.26,153.19,6.5277]
[1723241385619,0.43248901,153.25,153.1,48.44]
[1723241385822,10.22753716,153.26,153.15,16.3229]
[1723241386032,0.43248901,153.25,153.15,16.3229]
[1723241386342,6.527,153.21,153.15,22.8524]
[1723241386640,0.43248901,153.2,153.12,6.5304]
[1723241387013,0.43248901,153.2,153.08,6.5321]
[1723241387014,48.44,153.19,153.08,6.5321]
[1723241387233,48.44,153.22,153.04,436.04]
[1723241387429,6.5292,153.16,153.1,22.8605]
[1723241387738,0.43248901,153.15,153.1,22.8607]
[1723241387949,0.12549,153.21,153.1,16.3291]
[1723241388238,0.12549,153.18,153.06,16.3327]
[1723241388546,20.0,153.21,153.07,48.44]
[1723241388722,20.0,153.21,153.15,16.3234]
[1723241388921,6.7955959,153.25,153.15,16.3234]
[1723241389128,0.43248901,153.24,153.15,16.3234]
[1723241389438,58.66753716,153.26,153.18,16.3204]
[1723241389643,48.87248901,153.26,153.1,48.44]
[1723241389850,48.87248901,153.26,153.14,16.3238]
[1723241389851,6.528,153.19,153.14,16.3238]
[1723241390139,48.44,153.23,153.14,16.3238]
[1723241390348,0.43248901,153.22,153.11,16.328]
[1723241390521,0.43248901,153.22,153.07,48.44]
[1723241390522,0.43248901,153.22,153.14,16.3246]
[1723241390718,20.55797901,153.22,153.14,16.3246]
[1723241390921,0.25098,153.21,153.14,16.3246]
[1723241391233,10.22833846,153.27,153.1,48.44]
[1723241391422,6.5242,153.28,153.21,16.3164]
[1723241391618,0.8418172,153.29,153.23,6.526]
[1723241391917,1.27430621,153.29,153.18,22.8486]
[1723241392124,48.44,153.27,153.18,16.3205]
[1723241392424,0.43248901,153.26,153.1,48.56549]
[1723241392650,6.526,153.24,153.18,6.5282]
[1723241392820,6.526,153.24,153.17,16.321]
[1723241393020,48.44,153.27,153.17,16.321]
[1723241393216,6.5248,153.26,153.2,22.8457]
[1723241393520,0.8418172,153.29,153.22,16.3155]
[1723241393942,7.3657172,153.29,153.22,16.3155]
[1723241394145,0.8418172,153.29,153.25,6.525]
[1723241394320,0.8418172,153.29,153.23,1.30494395]
[1723241394522,0.8418172,153.29,153.27,6.5243]
[1723241394751,0.8418172,153.29,153.19,64.7006]
[1723241394916,0.8418172,153.29,153.24,6.5256]
[1723241395121,1.27430621,153.29,153.25,6.5252]
[1723241395340,1.27430621,153.29,153.23,16.3142]
[1723241395341,0.8418172,153.29,153.23,16.3142]
[1723241395549,0.8418172,153.29,153.04,80.8381645]
[1723241395550,48.44,153.28,153.2,16.3182]
[1723241395758,48.44,153.28,153.13,255.1]
[1723241395759,6.5265,153.23,153.13,255.1]
[1723241395915,65.18338901,153.28,153.16,16.3218]
[1723241396116,6.5257,153.24,153.18,6.5279]
[1723241396342,0.43248901,153.23,153.18,6.5279]
[1723241396625,6.5266,153.22,153.17,6.5286]
[1723241396947,6.65289,153.2,153.13,16.3256]
[1723241397127,0.12549,153.2,153.13,16.3256]
[1723241397327,20.12549,153.2,153.13,16.3256]
[1723241397743,20.0,153.2,153.15,16.3229]
[1723241397936,0.12549,153.2,153.15,16.3229]
[1723241398139,6.5269,153.22,153.16,6.529]
[1723241398329,20.12549,153.21,153.16,6.529]
[1723241398529,20.0,153.21,153.16,6.529]
[1723241399154,20.0,153.21,153.16,6.5287]
[1723241399954,0.12549,153.2,153.12,16.3268]
[1723241400253,0.12549,153.2,153.05,16.3345]
[1723241400254,6.5308,153.12,153.05,16.3345]
[1723241400422,0.12549,153.12,153.07,6.5326]
[1723241400625,20.12549,153.12,153.07,6.5326]
[1723241400832,20.0,153.12,153.08,6.5321]
[1723241401034,54.9683,153.18,153.12,6.5307]
[1723241401235,48.44,153.28,153.1,16.329]
[1723241401236,20.0,153.17,153.1,16.329]
[1723241401459,20.0,153.17,153.12,16.326]
[1723241401838,48.44,153.18,153.08,16.3309]
[1723241402045,20.43248901,153.17,153.09,6.532]
[1723241402347,20.43248901,153.17,153.08,16.3309]
[1723241402547,6.5298,153.15,153.1,6.5315]
[1723241402861,20.0,153.14,153.09,6.532]
[1723241403060,48.56549,153.12,153.05,16.3343]
[1723241403263,20.43248901,153.11,153.05,16.3343]
[1723241403454,6.5329,153.07,153.02,6.535]
[1723241403654,48.44,153.09,153.0,6.5358]
[1723241403858,0.12549,153.1,152.96,1.30703844]
[1723241403859,68.44,153.06,152.96,1.30703844]
[1723241404065,68.44,153.06,152.94,1.30691005]
[1723241404373,6.5303,153.14,152.96,67.77221277]
[1723241404665,48.44,153.21,153.11,16.328]
[1723241404852,6.5296,153.15,153.1,6.5315]
[1723241405045,6.5303,153.14,153.08,6.5321]
[1723241405367,48.44,153.12,153.04,16.3354]
[1723241405578,6.5315,153.11,153.05,6.5334]
[1723241406064,16.3248,153.15,153.05,6.5334]
[1723241406065,0.12549,153.14,153.08,6.5321]
[1723241406273,48.44,153.18,153.09,1.30634411]
[1723241406479,48.44,153.18,153.12,6.5306]
[1723241406480,54.9683,153.18,153.12,6.5306]
[1723241406771,48.44,153.18,153.11,16.3272]
[1723241406978,48.44,153.18,153.09,6.532]
[1723241406979,6.53,153.14,153.09,6.532]
[1723241407145,6.5291,153.16,153.11,6.5311]
[1723241407349,6.5291,153.16,153.1,6.5316]
[1723241407653,6.5301,153.14,153.08,22.8633]
[1723241407856,6.5301,153.14,153.09,6.5319]
[1723241408370,48.44,153.18,153.1,1.30620941]
[1723241408575,48.44,153.21,153.16,6.5288]
[1723241408872,48.44,153.18,153.1,6.5316]
[1723241409367,6.5291,153.16,153.11,6.5311]
[1723241409846,54.9673,153.21,153.16,6.5289]
[1723241410053,48.44,153.21,153.16,6.5289]
[1723241410371,6.5256,153.25,153.2,6.5274]
[1723241410565,6.4836,153.27,153.11,16.327]
[1723241410877,48.44,153.19,153.08,16.3312]
[1723241411174,48.44,153.13,153.02,6.1828]
[1723241411469,48.44,153.16,153.02,6.1828]
[1723241411770,6.5311,153.12,153.06,6.533]
[1723241412575,6.5316,153.11,153.05,22.8681]
[1723241412752,48.44,153.07,152.96,393.7828]
[1723241412952,6.5334,153.06,152.99,16.3407]
[1723241413156,20.0,153.1,153.08,6.5321]
[1723241413372,48.69098,153.15,153.07,16.3314]
[1723241413373,48.44,153.15,153.07,16.3314]
[1723241413571,6.5317,153.1,153.05,6.5334]
[1723241413776,0.25098,153.11,152.96,48.44]
[1723241413974,48.44,153.12,153.02,16.3368]
[1723241414369,48.44,153.12,152.97,19.33221277]
[1723241414684,16.3226,153.17,153.06,16.3325]
[1723241414685,6.5316,153.11,153.06,16.3325]
[1723241414888,48.44,153.15,153.06,16.3325]
[1723241415076,6.5307,153.13,153.07,6.5326]
[1723241415389,6.531,153.12,153.06,22.8658]
[1723241415974,48.44,153.15,153.07,1.30638607]
[1723241416177,6.5298,153.15,153.08,16.3303]
[1723241416363,48.44,153.12,153.05,16.3343]
[1723241416570,54.9708,153.12,153.05,16.3343]
[1723241416780,48.44,153.15,153.07,16.3314]
[1723241417095,48.44,153.15,152.96,48.44]
[1723241417096,48.44,153.15,153.11,6.5312]
[1723241417294,6.5291,153.16,153.11,6.5312]
[1723241417472,6.5291,153.16,153.1,6.5316]
[1723241417664,0.43248901,153.17,153.09,16.3294]
[1723241417884,54.9682,153.18,153.11,16.3272]
[1723241418281,48.44,153.24,153.12,1.30587905]
[1723241418485,48.44,153.24,153.19,6.5278]
[1723241418682,48.44,153.24,153.09,0.12549]
[1723241418996,48.44,153.24,153.06,255.1]
[1723241418997,6.5288,153.17,153.13,16.3253]
[1723241419191,6.5288,153.17,153.05,48.44]
[1723241419192,6.5291,153.16,153.1,16.3289]
[1723241419499,6.5291,153.16,153.11,6.5311]
[1723241419894,48.44,153.21,153.12,16.3262]
[1723241420102,6.528,153.19,153.14,6.5296]
[1723241420398,48.44,153.24,153.15,16.3237]
[1723241420784,6.5253,153.25,153.19,6.5274]
[1723241420986,6.84558901,153.27,153.17,16.3207]
[1723241421215,48.44,153.24,153.16,6.5287]
[1723241421389,6.5273,153.21,153.15,6.5294]
[1723241421712,48.44,153.24,153.06,0.12549]
[1723241422014,6.4131,153.27,153.03,9.2398749]
[1723241422015,48.44,153.14,153.03,9.2398749]
[1723241422196,48.44,153.17,153.04,1.30634883]
[1723241422518,6.5308,153.12,152.96,48.44]
[1723241422813,0.12549,153.2,152.98,20.0]
[1723241422987,0.25098,153.2,152.99,1.30593632]
[1723241423312,0.12549,153.2,152.99,1.30593632]
[1723241423526,65.12549,153.2,153.03,19.33221277]
[1723241423690,74.57256257,153.28,152.95,21.8253]
[1723241423691,6.5269,153.22,153.05,15.7802]
[1723241423887,6.527,153.21,153.06,134.57972105]
[1723241424402,48.44,153.19,153.05,15.7802]
[1723241424596,48.44,153.19,152.96,48.44]
[1723241424597,6.5319,153.1,152.99,15.7802]
[1723241424910,48.44,153.15,153.0,1.30636356]
[1723241425112,48.44,153.19,153.0,1.30636356]
[1723241425113,20.0,153.14,153.0,1.30636356]
[1723241425324,26.5297,153.15,152.99,15.7802]
[1723241425490,74.9697,153.15,153.0,1.30613256]
[1723241425690,74.9697,153.15,152.99,15.7802]
[1723241425691,48.44,153.12,152.99,15.7802]
[1723241425913,20.0,153.11,152.99,15.7802]
[1723241426106,6.5321,153.09,152.99,15.7802]
[1723241426294,20.0,153.11,152.99,15.7802]
[1723241426495,20.0,153.11,153.0,1.30631169]
[1723241426697,20.0,153.14,153.0,1.30631169]
[1723241426895,20.0,153.18,153.01,0.25098]
[1723241427210,48.44,153.19,153.03,0.12549]
[1723241427411,6.5287,153.17,153.05,0.12549]
[1723241427595,48.44,153.19,153.05,0.50196]
[1723241427798,48.44,153.19,153.05,1.80794061]
[1723241427799,6.5299,153.15,153.05,1.80794061]
[1723241428200,6.5273,153.21,153.07,0.12549]
[1723241428416,6.5273,153.21,153.09,0.12549]
[1723241428605,48.44,153.22,153.09,1.80754608]
[1723241428808,6.5265,153.23,153.09,46.80754608]
[1723241429020,6.5265,153.23,153.09,68.75483785]
[1723241429422,1.13637424,153.28,153.14,48.44]
[1723241429621,7.3654172,153.29,153.12,15.90569]
[1723241429622,48.44,153.27,153.15,45.12549]
[1723241429791,48.44,153.24,153.12,15.7802]
[1723241430312,48.44,153.24,153.13,45.50196]
[1723241430521,48.44,153.27,153.13,45.50196]
[1723241430522,6.5256,153.25,153.13,45.50196]
[1723241430821,48.44,153.27,153.15,0.12549]
[1723241431018,0.8418172,153.29,153.15,1.80684182]
[1723241431214,0.8418172,153.29,153.15,46.80684182]
[1723241431425,0.8418172,153.29,153.15,66.13905459]
[1723241431721,0.8418172,153.29,153.16,20.0]
[1723241431901,0.8418172,153.29,153.17,46.8067567]
[1723241432109,0.8418172,153.29,153.19,0.12549]
[1723241432327,0.8418172,153.29,153.19,1.68126676]
[1723241432524,0.8418172,153.29,153.2,0.12549]
[1723241432699,0.8418172,153.29,153.23,15.7802]
[1723241433200,0.8418172,153.29,153.21,1.30461612]
[1723241433398,48.44,153.27,153.15,15.7802]
[1723241433623,0.8418172,153.29,153.16,46.55596749]
[1723241433920,0.8418172,153.29,153.16,65.25098]
[1723241434128,48.44,153.27,153.16,45.25098]
[1723241434329,6.5248,153.26,153.16,45.25098]
[1723241434511,48.44,153.24,153.15,15.7802]
[1723241434824,54.9657,153.24,153.15,15.7802]
[1723241435396,48.44,153.24,153.15,15.7802]
[1723241435603,48.44,153.24,153.09,15.6703]
[1723241435604,6.5265,153.23,153.09,15.6703]
[1723241435905,20.0,153.23,153.09,36.30790643]
[1723241436110,20.0,153.23,153.12,19.33221277]
[1723241436330,6.5257,153.25,153.13,1.30510153]
[1723241436628,48.44,153.27,153.11,48.44]
[1723241436819,0.8418172,153.29,153.12,84.83417277]
[1723241437004,0.8418172,153.29,153.12,65.50196]
[1723241437005,48.44,153.27,153.12,65.50196]
[1723241437328,48.44,153.24,153.12,45.25098]
[1723241437831,48.44,153.27,153.13,1.30515919]
[1723241438123,6.5249,153.26,153.14,0.25098]
[1723241438301,20.0,153.26,153.15,1.4306072]
[1723241438505,20.0,153.26,153.15,0.25098]
[1723241438707,26.5249,153.26,153.16,0.25098]
[1723241439008,20.0,153.26,153.17,0.12549]
[1723241439214,48.44,153.27,153.17,0.25098]
[1723241439604,48.44,153.27,153.17,0.12549]
[1723241439811,48.44,153.27,153.08,54.9133]
[1723241439812,0.43248901,153.26,153.08,54.9133]
[1723241440026,48.44,153.23,153.08,6.4733]
[1723241440230,48.44,153.27,153.1,1.30541616]
[1723241440529,20.0,153.26,153.11,1.30519934]
[1723241440904,6.526,153.24,153.1,48.44]
[1723241441100,48.44,153.27,153.13,19.33221277]
[1723241441327,7.3654172,153.29,153.15,0.12549]
[1723241441503,0.8418172,153.29,153.17,0.12549]
[1723241441704,0.8418172,153.29,153.19,0.12549]
[1723241441905,0.8418172,153.29,153.19,1.55562233]
[1723241442212,0.8418172,153.29,153.21,0.12549]
[1723241442531,0.8418172,153.29,153.23,19.45770277]
[1723241442832,0.8418172,153.29,153.22,48.44]
[1723241442833,6.5197,153.38,153.25,0.12549]
[1723241443026,48.44,153.39,153.26,1.30418646]
[1723241443027,6.5207,153.36,153.26,1.30418646]
[1723241443336,48.44,153.39,153.27,1.55511861]
[1723241443517,48.44,153.39,153.28,0.12549]
[1723241443721,48.44,153.39,153.24,45.12549]
[1723241443722,6.5223,153.32,153.24,45.12549]
[1723241444021,48.44,153.33,153.2,1.30455812]
[1723241444220,48.44,153.33,153.18,70.5836]
[1723241444221,6.5226,153.32,153.18,70.5836]
[1723241444402,48.44,153.33,153.18,70.5836]
[1723241444403,6.5228,153.31,153.18,70.5836]
[1723241444936,48.44,153.36,153.18,89.91581277]
[1723241445104,20.0,153.35,153.19,1.30447011]
[1723241445415,48.44,153.36,153.2,0.12549]
[1723241445617,6.521,153.35,153.21,1.30446834]
[1723241445827,48.44,153.36,153.23,0.12549]
[1723241446127,6.5226,153.32,153.23,0.12549]
[1723241446423,48.44,153.33,153.22,0.12549]
[1723241446814,48.44,153.36,153.23,0.12549]
[1723241447016,48.44,153.36,153.23,0.25098]
[1723241447212,48.44,153.36,153.25,0.12549]
[1723241447536,6.5198,153.38,153.25,1.55512715]
[1723241447827,6.5198,153.38,153.27,0.12549]
[1723241448031,6.5198,153.38,153.27,1.42963771]
[1723241448233,32.41350612,153.44,153.29,0.12549]
[1723241448407,32.41350612,153.44,153.29,46.55487285]
[1723241448408,48.44,153.43,153.29,46.55487285]
[1723241448716,6.5185,153.41,153.3,0.25098]
[1723241448912,6.5181,153.42,153.3,1.55487243]
[1723241449113,5.9020384,153.44,153.31,0.12549]
[1723241449332,5.9020384,153.44,153.33,0.12549]
[1723241449520,6.5178,153.43,153.33,0.37647]
[1723241449832,0.43248901,153.42,153.3,20.25098]
[1723241450014,48.44,153.4,153.3,20.0]
[1723241450330,5.9020384,153.44,153.32,0.12549]
[1723241450529,5.9020384,153.44,153.33,1.30362728]
[1723241450944,5.9020384,153.44,153.34,0.37647]
[1723241451155,5.9020384,153.44,153.35,1.30355314]
[1723241451452,5.9020384,153.44,153.36,1.3035593]
[1723241452411,5.9020384,153.44,153.34,1.68002196]
[1723241452617,5.9020384,153.44,153.35,0.12549]
[1723241452823,5.9020384,153.44,153.35,1.42889712]
[1723241453032,5.9020384,153.44,153.37,0.12549]
[1723241453239,5.9020384,153.44,153.37,1.42883901]
[1723241453426,5.9020384,153.44,153.39,0.12549]
[1723241453743,5.9020384,153.44,153.41,0.12549]
[1723241453943,0.8418172,153.45,153.41,73.02734625]
[1723241454241,6.512,153.57,153.43,0.12549]
[1723241454416,6.513,153.54,153.43,1.42820135]
[1723241454623,0.43248901,153.53,153.42,0.25098]
[1723241454816,48.44,153.55,153.42,0.25098]
[1723241454817,6.5138,153.52,153.42,0.25098]
[1723241455043,48.44,153.58,153.43,1.42843638]
[1723241455216,48.44,153.58,153.45,0.12549]
[1723241455414,48.44,153.58,153.44,0.37647]
[1723241455620,6.5121,153.56,153.45,1.30271161]
[1723241455833,6.5117,153.57,153.46,0.37647]
[1723241456024,6.5117,153.57,153.47,1.30262681]
[1723241456439,6.5125,153.55,153.46,1.30251854]
[1723241456643,6.5125,153.55,153.43,0.12549]
[1723241456857,6.5121,153.56,153.43,1.80472287]
[1723241457348,6.5126,153.55,153.43,21.80472287]
[1723241457516,48.44,153.58,153.44,45.0]
[1723241457719,6.5134,153.53,153.44,45.0]
[1723241458030,6.5143,153.51,153.41,6.4733]
[1723241458230,20.0,153.5,153.42,1.30303513]
[1723241458628,20.0,153.5,153.41,7.77633938]
[1723241461124,6.511,153.59,153.49,1.42791939]
[1723241461326,20.0,153.58,153.49,1.42791939]
[1723241461552,0.12549,153.57,153.45,1.30245275]
[1723241461858,13.3317,153.54,153.46,1.30262674]
[1723241462354,20.0,153.53,153.4,15.6703]
[1723241462648,20.0,153.53,153.42,1.30265524]
[1723241462845,20.0,153.53,153.43,1.30265559]
[1723241463057,20.0,153.53,153.4,83.44251277]
[1723241463223,20.0,153.53,153.4,35.00251277]
[1723241463424,20.0,153.53,153.4,15.6703]
[1723241463425,6.5147,153.5,153.4,15.6703]
[1723241463729,54.9542,153.51,153.4,15.6703]
[1723241463925,6.5146,153.5,153.4,15.6703]
[1723241464157,48.44,153.51,153.4,15.6703]
[1723241464454,13.3317,153.54,153.42,1.30307466]
[1723241464642,13.3317,153.54,153.43,20.63486305]
[1723241464840,8.3317,153.54,153.44,20.0]
[1723241465153,8.3317,153.54,153.46,0.12549]
[1723241465470,8.3317,153.54,153.48,0.12549]
[1723241465634,0.8418172,153.6,153.5,0.12549]
[1723241465839,0.8418172,153.6,153.5,66.80403104]
[1723241466027,0.8418172,153.6,153.52,0.12549]
[1723241466237,1.13335843,153.71,153.52,86.13613945]
[1723241466434,1.13335843,153.71,153.55,0.12549]
[1723241466634,0.8418172,153.76,153.57,0.12549]
[1723241466934,6.5082,153.66,153.57,45.12549]
[1723241467136,33.3617172,153.76,153.57,45.12549]
[1723241467137,6.5072,153.68,153.57,45.12549]
[1723241467434,48.44,153.7,153.58,46.67810036]
[1723241467656,54.9463,153.7,153.59,0.12549]
[1723241467859,6.5057,153.72,153.6,1.30145822]
[1723241468029,48.44,153.73,153.63,0.12549]
[1723241468242,6.5044,153.75,153.63,53.17058301]
[1723241468531,48.44,153.71,153.63,6.3675]
[1723241468736,48.44,153.71,153.62,16.1273]
[1723241468737,0.43248901,153.7,153.62,16.1273]
[1723241468956,6.5073,153.68,153.57,6.3675]
[1723241469175,0.43248901,153.67,153.57,6.3675]
[1723241469451,48.44,153.69,153.57,6.3675]
[1723241470158,54.948,153.66,153.57,6.3675]
[1723241470367,20.0,153.65,153.57,6.3675]
[1723241471255,48.44,153.69,153.58,45.25098]
[1723241471457,20.0,153.68,153.58,45.37647]
[1723241471666,6.5053,153.72,153.59,0.12549]
[1723241471960,45.68346901,153.71,153.58,0.12549]
[1723241472163,6.5086,153.65,153.57,6.3675]
[1723241472337,6.5086,153.65,153.56,16.1273]
[1723241472338,49.12346901,153.64,153.52,255.1]
[1723241472536,54.95,153.61,153.51,6.3675]
[1723241472749,48.44,153.61,153.51,6.3675]
[1723241473058,48.69098,153.64,153.52,1.30225023]
[1723241473361,20.0,153.63,153.52,1.30225023]
[1723241473862,20.0,153.63,153.53,0.37647]
[1723241474059,20.0,153.63,153.54,1.30200283]
[1723241474261,0.12549,153.62,153.51,6.3675]
[1723241474468,6.76048,153.62,153.52,20.0]
[1723241474765,26.5092,153.63,153.52,21.30220946]
[1723241474966,26.5092,153.63,153.51,6.3675]
[1723241474967,6.5111,153.59,153.51,6.3675]
[1723241475140,0.12549,153.61,153.51,6.3675]
[1723241475338,20.12549,153.61,153.51,6.3675]
[1723241475534,0.12549,153.59,153.51,6.3675]
[1723241476063,26.63669,153.59,153.51,6.3675]
[1723241476261,20.0,153.59,153.52,1.30246102]
[1723241476443,20.0,153.62,153.51,6.3675]
[1723241476845,0.12549,153.6,153.51,6.3675]
[1723241477071,0.25098,153.61,153.51,7.66987795]
[1723241477256,0.25098,153.61,153.51,6.3675]
[1723241477439,6.512,153.57,153.5,16.1273]
[1723241477646,48.44,153.6,153.51,1.30249966]
[1723241477966,6.5311,153.71,153.51,1.30249966]
[1723241478143,6.5079,153.66,153.51,21.30249966]
[1723241478461,22.7955,153.71,153.51,21.30249966]
[1723241478462,6.5068,153.69,153.55,19.33221277]
[1723241478662,16.2606,153.75,153.52,6.4218]
[1723241478663,6.507,153.68,153.56,66.8035167]
[1723241479061,6.5081,153.66,153.56,66.8035167]
[1723241479268,16.2653,153.71,153.56,66.3015567]
[1723241479565,48.44,153.69,153.57,0.50196]
[1723241479746,48.44,153.69,153.59,0.12549]
[1723241479947,54.9466,153.69,153.59,0.25098]
[1723241480154,48.44,153.69,153.59,0.37647]
[1723241480468,48.44,153.69,153.6,1.42703944]
[1723241480645,6.5058,153.71,153.6,0.12549]
[1723241480849,6.5058,153.71,153.6,0.25098]
[1723241481050,6.5061,153.7,153.6,0.25098]
[1723241481251,6.5057,153.71,153.6,0.25098]
[1723241481466,6.5062,153.7,153.6,0.25098]
[1723241481655,48.44,153.69,153.56,20.0]
[1723241481845,81.8014172,153.76,153.54,21.30189745]